[Event "AUT Bundesliga 2021-22"]
[Site "Graz"]
[Date "2022.04.21"]
[Round "9.17"]
[White "Amann, Harald"]
[Black "Webersberger, Johann"]
[Result "0-1"]
[ECO "D93"]
[WhiteElo "1913"]
[BlackElo "2321"]
[Annotator "TA"]
[PlyCount "74"]
[EventDate "2021.01.17"]
[EventType "team-tourn"]
[EventCountry "AUT"]
[SourceTitle "playchess.com"]
[Source "ChessBase"]
[SourceQuality "1"]
[TimeControl "40/5400+30:1800+30"]

{[%evp 12,74,29,-31,-16,-28,-15,-32,-43,-32,-21,-27,-27,-20,-20,-22,-29,-36,0,-2,-6,-42,-14,-14,-16,-14,-9,-28,11,-20,-11,0,-3,-25,-24,-20,-21,-29,0,-16,13,0,7,-15,9,-41,-25,-45,-38,-55,-12,-11,-17,-17,-11,-50,-31,-71,-60,-106,-6,-125,-126,-352,-355]} 1. d4 Nf6 2. c4 {[%emt 0:00:27]} g6 {[%emt 0:00:31]} 3. Nc3 {[%emt 0:00:16]} d5 {[%emt 0:00:13]} 4. Nf3 {[%emt 0:05:31]} Bg7 {[%emt 0:01:43]} 5. Bf4 {[%emt 0:11:38]} O-O {[%emt 0:08:06]} 6. e3 {[%emt 0:00:07]} c5 {[%emt 0:01:39]} 7. h3 {[%emt 0:05:55]} (7. dxc5 $11 Qa5 8. Rc1 (8. cxd5 Nxd5 9. Be5 Nxc3 $15)) 7... Nc6 {[%emt 0:07:18] D92: Grünfeld: 4 Nf3 Bg7 5 Bf4.} 8. Be2 {[%emt 0:03:34]} cxd4 {[%emt 0:06:36]} 9. exd4 {[%emt 0:01:46]} dxc4 {[%emt 0:02:51] Black is slightly better.} 10. Bxc4 {[%emt 0:01:30]} Na5 {[%emt 0:00:47]} 11. Be2 {[%emt 0:07:44]} Be6 {[%emt 0:02:06][%cal Bc8e6,Be6d5,Bd5c6][%mdl 32]} 12. O-O {[%emt 0:05:23]} Nd5 {[%emt 0:06:47]} 13. Be5 {[%emt 0:04:42]} Bh6 {[%emt 0:09:38] [#]} 14. Ne4 $146 {[%emt 0:16:45]} ({Predecessor:} 14. Nh2 Nxc3 15. bxc3 Rc8 16. Bf3 f6 17. Bg3 Bd5 18. Ng4 Bg7 19. Bxd5+ Qxd5 20. Re1 {0-1 (50) Schulz,M (2239)-Meister,J (2479) Berlin 2012}) 14... Nf4 {[%emt 0:13:42]} 15. Bxf4 {[%emt 0:05:47]} Bxf4 {[%emt 0:00:33]} 16. Qa4 {[%emt 0:00:20]} Bd5 {[%emt 0:12:05]} 17. Nc3 {[%emt 0:01:39]} Bc6 {[%emt 0:05:41] A strong pair of Bishops.} 18. Qc2 {[%emt 0:00:44]} Rc8 {[%emt 0:05:41]} 19. Rad1 {[%emt 0:03:35]} Bd5 {[%emt 0:05:12]} 20. Qb1 {[%emt 0:03:52]} Nc4 {[%emt 0:04:05] Threatening ...Bxf3.} 21. Rfe1 {[%emt 0:02:16]} e6 {[%emt 0:01:10]} 22. Nxd5 {[%emt 0:10:25]} Qxd5 {[%emt 0:00:01]} 23. Bd3 {[%emt 0:00:23]} Rfd8 {[%emt 0:01:04]} 24. Be4 {[%emt 0:04:08]} Qb5 {[%emt 0:00:31]} 25. b3 {[%emt 0:01:07]} Na3 {[%emt 0:01:20]} 26. Qb2 {[%emt 0:00:01]} Nc4 {[%emt 0:00:19]} 27. Qb1 {[%emt 0:00:01]} Nd6 {[%emt 0:01:07]} 28. Bd3 {[%emt 0:00:01]} (28. d5 $11 exd5 29. Bxd5) 28... Qa5 {[%emt 0:01:03]} 29. g3 {[%emt 0:02:57]} Bh6 {[%emt 0:00:08]} 30. Ne5 {[%emt 0:00:22]} Nb5 {[%emt 0:00:50]} 31. Bxb5 {[%emt 0:01:02]} Qxb5 {[%emt 0:00:02]} 32. Qe4 {[%emt 0:00:02]} Qd5 {[%emt 0:00:38]} 33. Qe2 {[%emt 0:00:32]} (33. Qh4 $5 {[%cal Rh4h6]} Bg7 34. Qf4 $11) 33... Rc7 {[%emt 0:00:46]} 34. Ng4 {[%emt 0:00:49]} Bg7 {[%emt 0:00:59] Prevents Nf6+.} 35. Ne3 {[%emt 0:00:02] [#]} (35. Ne5 $15) 35... Qe4 {[%emt 0:00:09] &Nero is more active.} ({Black should play} 35... Qc6 $1 $17 36. Ng4 Bxd4) 36. f3 {[%emt 0:00:45]} (36. d5 $1 $11) 36... Qc6 $17 {[%emt 0:00:08]} 37. Qd3 $2 {[%emt 0:00:25]} (37. Rd2 $17 {is a better defense.}) 37... Qxf3 {[%emt 0:00:20] Weighted Error Value: White=0.25 (precise) /Black=0.17 (very precise)} 0-1

[Event "AUT Bundesliga 2021-22"]
[Site "Graz"]
[Date "2022.04.21"]
[Round "9.19"]
[White "Krassowizkij, Jaroslaw"]
[Black "Lenic, Luka"]
[Result "0-1"]
[ECO "E32"]
[WhiteElo "2449"]
[BlackElo "2634"]
[Annotator "TA"]
[PlyCount "94"]
[EventDate "2021.01.17"]
[EventType "team-tourn"]
[EventCountry "AUT"]
[SourceTitle "playchess.com"]
[Source "ChessBase"]
[SourceQuality "1"]
[TimeControl "40/5400+30:1800+30"]

{[%evp 17,94,0,50,53,58,24,13,19,7,-17,-17,-13,-8,-20,-26,-17,0,0,51,17,52,0,7,0,0,-7,0,0,0,-15,-12,-14,0,-17,-17,-64,-69,-68,-89,-119,-116,-171,-164,-267,-258,-245,-261,-261,-238,-258,-208,-224,-233,-225,-197,-197,-194,-194,-172,-188,-189,-190,-179,-239,-217,-263,-260,-256,-255,-351,-350,-350,-348,-339,-331,-647,-647,-668,-637]} 1. d4 {[%emt 0:00:03]} Nf6 {[%emt 0:01:26]} 2. c4 {[%emt 0:00:06]} e6 {[%emt 0:00:04]} 3. Nc3 {[%emt 0:00:08]} Bb4 {[%emt 0:02:24]} 4. Qc2 {[%emt 0:00:10]} O-O {[%emt 0:04:48]} 5. a3 {[%emt 0:00:12]} Bxc3+ {[%emt 0:00:20]} 6. Qxc3 {[%emt 0:00:04]} b6 {[%emt 0:03:21]} 7. Bg5 {[%emt 0:00:20]} Bb7 {[%emt 0:00:35]} 8. e3 {[%emt 0:00:22]} d6 {[%emt 0:00:34]} 9. f3 {[%emt 0:00:20] is the legacy move (9.Ne2).} c5 {[%emt 0:09:11]} (9... h6 $11 10. Bxf6 Qxf6) 10. dxc5 $14 {[%emt 0:00:33] E32: Nimzo-Indian: Classical (4 Qc2): 4...0-0.} bxc5 {[%emt 0:01:53]} 11. Bxf6 {[%emt 0:00:07]} Qxf6 {[%emt 0:01:13]} 12. Qxf6 {[%emt 0:00:05] The position is equal.} gxf6 {[%emt 0:00:03]} 13. O-O-O {[%emt 0:09:24]} Rd8 {[%emt 0:00:43]} 14. Ne2 {[%emt 0:00:17] [#]} Kf8 $146 {[%emt 0:03:30]} ({Predecessor:} 14... f5 15. Nc3 a6 16. Be2 Nc6 17. Rd2 Kf8 18. Kc2 Ke7 19. Rhd1 Rac8 20. Kb1 Ne5 {½-½ (64) Spata,G (2281)-Mayorga,N (2319) Buenos Aires 2016}) 15. Nc3 {[%emt 0:00:45]} Ke7 {[%emt 0:00:08]} 16. Be2 {[%emt 0:03:54]} Nd7 {[%emt 0:02:54]} 17. Rd2 {[%emt 0:00:22]} Nb6 {[%emt 0:16:59]} ({Black should play} 17... f5 $11) 18. Rhd1 {[%emt 0:09:07]} a6 {[%emt 0:01:15]} 19. b4 {[%emt 0:22:57]} (19. e4 $14) 19... cxb4 {[%emt 0:05:06]} 20. Rb2 {[%emt 0:13:44]} Rab8 {[%emt 0:12:43][%cal Ob7f3] ...Bxf3! is the strong threat.} 21. Rxb4 {[%emt 0:07:45]} Nd7 {[%emt 0:01:19]} 22. Kd2 {[%emt 0:00:57]} Bc6 {[%emt 0:00:13]} 23. Rdb1 {[%emt 0:00:09]} Rbc8 {[%emt 0:00:29]} 24. Ke1 {[%emt 0:09:34]} Rg8 {[%emt 0:02:10][%cal Bd8g8,Bg8g5,Bg5c5][%mdl 32]} 25. Kf2 {[%emt 0:06:02]} Rg5 {[%emt 0:00:13]} 26. Bd1 {[%emt 0:03:44]} (26. h3 $11 {is more appropriate.}) 26... Rc5 {[%emt 0:04:30]} 27. Na4 {[%emt 0:01:41]} Ra5 {[%emt 0:03:00] Black continues to play with concentration.} 28. f4 {[%emt 0:02:12]} f5 {[%emt 0:05:04]} 29. h3 {[%emt 0:02:25]} (29. Nb6 $17 Nxb6 30. Rxb6) 29... Nf6 $19 {[%emt 0:00:39] Threatens to win with ...Rg8.} 30. Nb6 {[%emt 0:04:10]} (30. Nc3 {keeps fighting.}) 30... Rg8 {[%emt 0:02:36]} 31. Bf3 {[%emt 0:00:02]} Ne4+ {[%emt 0:01:27]} ({Not} 31... Bxf3 32. gxf3 Rxa3 33. Ra4 $15) 32. Ke1 {[%emt 0:00:20]} Rxa3 {[%emt 0:01:09]} 33. R4b3 {[%emt 0:00:18]} Rxb3 {[%emt 0:01:02]} 34. Rxb3 {[%emt 0:00:01] [#]} Nc5 $1 {[%emt 0:00:23]} 35. Ra3 {[%emt 0:00:03] [#]} Rb8 $1 {[%emt 0:04:19]} 36. Bxc6 {[%emt 0:00:04] Hoping for Na4.} Rxb6 {[%emt 0:00:01][%mdl 4096] Endgame KRB-KRN} 37. Bf3 {[%emt 0:00:06]} Rb4 {[%emt 0:01:27]} 38. Be2 {[%emt 0:00:29]} Rb1+ {[%emt 0:03:05]} 39. Kf2 {[%emt 0:01:14]} Rb2 {[%emt 0:00:45]} 40. Ke1 {[%emt 0:00:00]} (40. Kf1 {is a better defense.}) 40... Kd7 {[%emt 0:00:00]} 41. g4 {[%emt 0:02:20]} fxg4 {[%emt 0:09:22]} 42. hxg4 {[%emt 0:00:01]} h6 {[%emt 0:00:18]} 43. g5 {[%emt 0:01:16]} hxg5 {[%emt 0:01:28]} 44. fxg5 {[%emt 0:00:01]} Rb8 {[%emt 0:02:06]} 45. Bh5 {[%emt 0:00:31]} Rg8 {[%emt 0:00:46]} 46. Bxf7 $2 {[%emt 0:00:19]} (46. g6) 46... Rxg5 {[%emt 0:00:04]} 47. Ra2 {[%emt 0:00:06]} Ke7 {[%emt 0:00:11] Weighted Error Value: White=0.29 (precise) /Black=0.10 (very precise)} 0-1

[Event "AUT Bundesliga 2021-22"]
[Site "Graz"]
[Date "2022.04.21"]
[Round "9.20"]
[White "Lagarde, Maxime"]
[Black "Kvetny, Mark"]
[Result "1-0"]
[ECO "E11"]
[WhiteElo "2626"]
[BlackElo "2417"]
[Annotator "TA"]
[PlyCount "85"]
[EventDate "2021.01.17"]
[EventType "team-tourn"]
[EventCountry "AUT"]
[SourceTitle "playchess.com"]
[Source "ChessBase"]
[SourceQuality "1"]
[TimeControl "40/5400+30:1800+30"]

{[%evp 10,85,15,17,29,0,0,15,0,-13,-20,-34,-42,-41,-31,-54,-39,-47,-42,-39,-20,-18,-11,-23,-15,-18,-15,-15,0,0,-9,-58,-72,-67,-75,-135,-62,-82,-91,-97,-91,-155,-156,-602,-609,-499,-565,-850,-755,-833,-852,-850,-849,-794,-806,-930,-608,-573,-147,-154,-75,-73,-8,-112,-120,-93,0,0,0,0,541,537,748,262,29988,29989,29997,29998]} 1. d4 {[%emt 0:00:03]} Nf6 {[%emt 0:00:15]} 2. c4 {[%emt 0:00:04]} e6 {[%emt 0:00:10]} 3. Nf3 {[%emt 0:00:04]} Bb4+ {[%emt 0:04:19]} 4. Nbd2 {[%emt 0:00:15]} O-O {[%emt 0:00:33]} 5. a3 {[%emt 0:00:04]} Be7 {[%emt 0:00:04]} 6. e4 {[%emt 0:00:06]} d6 {[%emt 0:00:30][%cal Oe6e5] E11: Bogo-Indian.} 7. b4 {[%emt 0:00:06]} a5 {[%emt 0:10:19]} 8. Bb2 {[%emt 0:05:42]} e5 {[%emt 0:04:56] The position is equal.} 9. d5 {[%emt 0:10:12]} c6 {[%emt 0:27:56]} 10. h3 {[%emt 0:06:23]} axb4 {[%emt 0:07:06]} 11. axb4 {[%emt 0:00:05]} Rxa1 {[%emt 0:00:05] [#]} 12. Bxa1 $146 {[%emt 0:02:45]} ({Predecessor:} 12. Qxa1 b5 13. Qa7 Bd7 14. Bd3 Nh5 15. g3 bxc4 16. Bxc4 Nf6 17. Kf1 cxd5 18. exd5 {0-1 (40) Potpara,N (2371)-Draskovic,L (2439) Pljevlja 2015}) 12... Na6 {[%emt 0:02:44]} 13. Qb3 {[%emt 0:00:34]} cxd5 {[%emt 0:01:43]} 14. cxd5 {[%emt 0:05:47]} Qb6 {[%emt 0:00:14]} (14... Bd7 $5 {[%cal Rd8b6]}) 15. Bc3 {[%emt 0:03:24]} Bd7 {[%emt 0:00:32] Black wants to play ...Rc8.} 16. Nc4 {[%emt 0:01:11]} Qc7 {[%emt 0:04:18] And now ...Rc8 would win.} 17. Nfd2 $1 {[%emt 0:00:04]} Rc8 {[%emt 0:02:29] ...b5 is the strong threat.} 18. Bb2 {[%emt 0:00:06]} b5 {[%emt 0:07:11]} 19. Na3 {[%emt 0:03:26]} Nh5 {[%emt 0:01:29]} 20. Ndb1 {[%emt 0:04:24]} (20. Nxb5 Qc2 21. Qxc2 (21. Nxd6 $2 Bxd6 22. Bxa6 Ba4 $19) 21... Rxc2 $15) (20. Bxb5 $11 {should be considered.} Bxb5 21. Nxb5) 20... Qb6 {[%emt 0:04:38]} 21. g3 {[%emt 0:08:03]} Bg5 {[%emt 0:03:53]} 22. Nc2 {[%emt 0:02:52]} (22. Be2 $142 Nf6 23. Bf3) 22... f5 {[%emt 0:02:42]} (22... Nf6 $17 23. Bg2 Rc4) 23. h4 $15 {[%emt 0:00:21]} Bh6 {[%emt 0:02:02]} 24. Bh3 {[%emt 0:00:17]} Qc7 $1 {[%emt 0:05:12]} 25. Nba3 {[%emt 0:07:42]} (25. Nc3 $142) 25... fxe4 $17 {[%emt 0:00:24]} 26. g4 $2 {[%emt 0:00:18]} (26. Be6+ $17 Kh8 27. g4) 26... Nf4 $19 {[%emt 0:00:36] Strongly threatening ...Nd3+.} 27. g5 {[%emt 0:00:01]} Nd3+ {[%emt 0:01:24]} (27... Nxh3 28. Rxh3 Bxh3 29. Qxh3 Bxg5 30. hxg5 $11) 28. Kf1 {[%emt 0:00:28] [#]} Qa7 $1 {[%emt 0:00:58][%csl Gd3][%cal Ra7f2]} 29. Bd4 {[%emt 0:02:17]} exd4 {[%emt 0:00:02]} 30. Be6+ {[%emt 0:00:08]} Kh8 {[%emt 0:02:12][%cal Oa6b4]} 31. gxh6 {[%emt 0:01:00]} gxh6 {[%emt 0:00:18][%cal Oa6b4]} 32. Rg1 {[%emt 0:01:34]} Rf8 {[%emt 0:02:53][%csl Gd3][%cal Rf8f2]} 33. Rg2 {[%emt 0:00:10]} Nf4 $2 {[%emt 0:00:36]} (33... Be8 $19 34. Nb1 Bg6) 34. Rg4 $17 {[%emt 0:00:43]} Bxe6 {[%emt 0:00:52]} (34... Be8 $142 35. Qb2 Nd3 36. Qxd4+ Qxd4 37. Nxd4 Naxb4) 35. dxe6 {[%emt 0:00:06]} h5 {[%emt 0:00:22]} (35... Nd3 36. Nxb5 Rxf2+ 37. Kg1 $11) ({Black should try} 35... Qe7 $1 $17 36. Nxb5 Nxe6 37. Nbxd4 Qf6 $1) 36. Rxf4 {[%emt 0:02:42]} Rxf4 {[%emt 0:00:07]} 37. Qg3 {[%emt 0:00:03] [#]} Rf6 {[%emt 0:01:50]} ({Black should play} 37... Rf8 $1 $17 {Hoping for ...d3.} 38. Nxb5 Qg7 39. Qxg7+ Kxg7) 38. Nxb5 $40 {[%emt 0:02:50][%mdl 128] White mounts an attack.} Qe7 {[%emt 0:00:47]} 39. Ncxd4 {[%emt 0:04:11]} d5 {[%emt 0:00:47][%mdl 8192]} ({Don't take} 39... Nxb4 40. Nxd6 e3 {[#]} 41. Qxe3 $1 $16) (39... Nc7 $11 40. Nxd6 (40. Qxd6 $2 Qxd6 41. Nxd6 Nxe6 $19) 40... Nxe6) 40. Nd6 $18 {[%emt 0:00:00] Threatening mate with N4f5.} Rg6 {[%emt 0:00:00]} 41. Qc3 {[%emt 0:27:09]} (41. Nf7+ Kg7 42. Qe5+ Kf8 43. Ng5) 41... Qf6 $2 {[%emt 0:09:57]} (41... Qxd6 $18 42. Nf5+ d4 43. Qc8+ (43. Nxd6 $2 {too greedy.} dxc3 44. e7 Nc7 $19) 43... Rg8 44. Qxg8+ (44. Nxd6 Rxc8 45. Nxc8 Kg7 $16) 44... Kxg8 45. Nxd6 Kf8) 42. Nf7+ {[%emt 0:02:36] Pair of Knights!} Kg7 {[%emt 0:01:10]} 43. Nf5+ {[%emt 0:00:06] Never resign too early!  Weighted Error Value: White=0.51/Black=0.70} 1-0

[Event "AUT Bundesliga 2021-22"]
[Site "Graz"]
[Date "2022.04.21"]
[Round "9.22"]
[White "Diermair, Andreas"]
[Black "Richter, Nils"]
[Result "1-0"]
[ECO "E48"]
[WhiteElo "2469"]
[BlackElo "2320"]
[Annotator "TA"]
[PlyCount "81"]
[EventDate "2021.01.17"]
[EventType "team-tourn"]
[EventCountry "AUT"]
[SourceTitle "playchess.com"]
[Source "ChessBase"]
[SourceQuality "1"]
[TimeControl "40/5400+30:1800+30"]

{[%evp 11,81,0,0,0,0,-2,3,0,0,-10,10,-24,-16,-56,0,0,13,-1,7,10,11,13,12,0,0,13,39,52,59,64,68,32,83,87,75,69,78,13,22,10,16,22,10,9,21,0,74,66,64,65,98,93,179,128,128,71,112,98,111,100,187,178,208,212,201,187,1410,1387,1253,1253,1084,1019]} 1. d4 {[%emt 0:00:04]} Nf6 {[%emt 0:00:08]} 2. c4 {[%emt 0:00:05]} e6 {[%emt 0:00:08]} 3. Nc3 {[%emt 0:00:18]} Bb4 {[%emt 0:00:11]} 4. e3 {[%emt 0:00:14]} O-O {[%emt 0:00:24]} 5. Bd3 {[%emt 0:00:46]} d5 {[%emt 0:00:14]} 6. cxd5 {[%emt 0:03:09]} exd5 {[%emt 0:00:22]} 7. a3 {[%emt 0:00:10] E48: Nimzo-Indian: Rubinstein: 5 Bd3 d5 including 6 Ne2, but excluding 6 a3.} Bd6 {[%emt 0:00:58]} 8. Qc2 {[%emt 0:00:13]} a6 {[%emt 0:05:21]} 9. Nge2 {[%emt 0:06:13] The position is equal.} Re8 {[%emt 0:00:46]} 10. b4 {[%emt 0:05:22] [#]} Nbd7 $146 {[%emt 0:12:04]} ({Predecessor:} 10... b6 11. O-O Bb7 12. Rb1 Qe7 13. h3 Nbd7 14. b5 a5 15. a4 Rac8 16. Qb3 Nf8 {1-0 (39) Milov,V (2680)-Riff,J (2474) Kemer 2007}) 11. Bd2 {[%emt 0:07:57]} b6 {[%emt 0:04:30]} 12. Na4 {[%emt 0:15:52]} Bb7 {[%emt 0:01:50]} (12... Ne4 $15) 13. f3 $11 {[%emt 0:01:22]} Rc8 {[%emt 0:14:17]} 14. Rb1 {[%emt 0:05:59][%cal Oa4c5,Ba1b1,Bb1b7,Bb7c7][%mdl 32]} Qe7 {[%emt 0:14:33]} 15. O-O {[%emt 0:01:24][%cal Oa4c5]} g6 {[%emt 0:01:13] [#]} 16. Nc5 $1 {[%emt 0:09:30]} bxc5 {[%emt 0:02:44]} 17. bxc5 {[%emt 0:00:06][%mdl 64] Discovered Attack} Bxc5 {[%emt 0:01:03] Hoping for ...Bb6.} 18. Rxb7 {[%emt 0:00:44]} Bb6 {[%emt 0:03:40]} 19. Rb1 {[%emt 0:03:53]} a5 {[%emt 0:02:01]} 20. a4 {[%emt 0:01:39]} Qd6 {[%emt 0:02:19]} 21. Ba6 {[%emt 0:10:35]} Bxd4 {[%emt 0:05:47]} 22. Nxd4 $16 {[%emt 0:00:16]} ({Reject} 22. exd4 Qxa6 23. Nf4 c5 $15) 22... Qxa6 {[%emt 0:00:01]} 23. Rxc7 {[%emt 0:01:22] &Bianco is more active.} Ne5 {[%emt 0:02:03] [#]} 24. Nb5 {[%emt 0:03:34]} ({White should try} 24. Rbb7 $1 $16) 24... Nc4 $11 {[%emt 0:02:12]} 25. Rc1 {[%emt 0:03:11]} Qb6 {[%emt 0:03:15]} 26. Rxc8 {[%emt 0:00:12]} Rxc8 {[%emt 0:00:01]} 27. Qd3 {[%emt 0:00:54]} Re8 {[%emt 0:01:18]} 28. Re1 {[%emt 0:02:48]} Qc5 {[%emt 0:08:53] [#]} (28... Nxd2 $11 29. Qxd2 Re6) 29. Bc3 $1 $16 {[%emt 0:08:23]} Nd7 {[%emt 0:00:01][%cal Re8e3]} 30. Qd4 {[%emt 0:01:22]} (30. Bd4 {keeps more tension.} Qe7 31. Nc3 Nde5 32. Bxe5 Nxe5 33. Qd4) 30... Qxd4 {[%emt 0:00:46]} 31. Bxd4 {[%emt 0:00:02]} Nf8 {[%emt 0:05:15]} (31... Rb8 $16 {keeps fighting.}) 32. Nc3 {[%emt 0:02:19]} (32. Nc7 $18 Rd8 33. Rb1) 32... Rd8 {[%emt 0:04:40]} 33. Kf2 {[%emt 0:00:27]} (33. Rb1 $142) 33... f5 {[%emt 0:01:00]} 34. Rb1 {[%emt 0:00:58]} Ne6 {[%emt 0:00:17]} 35. Rb5 {[%emt 0:01:48]} f4 {[%emt 0:01:20]} (35... Nc7 $16 {was worth a try.}) 36. Nxd5 $18 {[%emt 0:00:53]} ({Don't play} 36. Rxd5 $6 Rxd5 37. Nxd5 Nxd4 38. exd4 Kf7 $16) 36... fxe3+ {[%emt 0:01:12]} 37. Bxe3 {[%emt 0:00:15]} h5 {[%emt 0:01:24]} 38. h4 {[%emt 0:00:50]} Kg7 $2 {[%emt 0:00:45]} (38... Rd6 39. Ke2 Kf7) 39. Rb7+ {[%emt 0:00:19] White is clearly winning.} Kh8 {[%emt 0:00:28]} 40. Nf6 {[%emt 0:00:00][%csl Gf6][%cal Rb7h7]} Nf8 {[%emt 0:00:00] Prevents Rh7+.} 41. Bh6 {[%emt 0:01:18] Weighted Error Value: White=0.11 (very precise) /Black=0.21 (precise)} 1-0

[Event "AUT Bundesliga 2021-22"]
[Site "Graz"]
[Date "2022.04.21"]
[Round "9.23"]
[White "Neyman, Igor"]
[Black "Sebenik, Matej"]
[Result "0-1"]
[ECO "D60"]
[WhiteElo "2325"]
[BlackElo "2510"]
[Annotator "TA"]
[PlyCount "112"]
[EventDate "2021.01.17"]
[EventType "team-tourn"]
[EventCountry "AUT"]
[SourceTitle "playchess.com"]
[Source "ChessBase"]
[SourceQuality "1"]
[TimeControl "40/5400+30:1800+30"]

{[%evp 22,112,10,10,7,0,25,15,27,20,12,14,14,14,10,4,10,0,0,0,2,-7,-7,-21,-7,-7,-7,-8,0,-66,0,-89,-90,-100,0,-66,-64,-64,-66,-67,-63,-60,-65,-91,-92,-111,-62,-55,0,-7,0,-78,-78,-78,-78,-78,-42,-78,-13,-111,-78,-164,-152,-355,-349,-342,-330,-577,-7,-7,-7,-7,-7,-12,-8,-118,-72,-116,-123,-260,-259,-252,-172,-270,0,-252,0,-246,-235,-29993,-29994,-29994,-29995]} 1. d4 {[%emt 0:00:03]} d5 {[%emt 0:00:16]} 2. c4 {[%emt 0:00:48]} e6 {[%emt 0:00:22]} 3. Nc3 {[%emt 0:00:23]} Nf6 {[%emt 0:00:09]} 4. Bg5 {[%emt 0:00:49]} Be7 {[%emt 0:01:17]} 5. Nf3 {[%emt 0:02:28]} O-O {[%emt 0:02:49]} 6. e3 {[%emt 0:01:30]} Nbd7 {[%emt 0:01:32]} 7. cxd5 {[%emt 0:03:20]} Nxd5 {[%emt 0:06:05]} 8. Bxe7 {[%emt 0:03:41]} Qxe7 {[%emt 0:00:05]} 9. Nxd5 {[%emt 0:03:45]} exd5 {[%emt 0:00:07]} 10. Bd3 {[%emt 0:00:48]} c6 {[%emt 0:00:23]} 11. O-O {[%emt 0:02:41]} Nf6 {[%emt 0:16:37]} 12. Qc2 {[%emt 0:05:36]} g6 {[%emt 0:01:59] D61: Queen's Gambit Declined: Classical: 7 Qc2.} 13. Qc5 {[%emt 0:16:33] [#]} Re8 $146 {[%emt 0:26:30]} ({Predecessor:} 13... Qxc5 14. dxc5 Nh5 15. Nd4 Ng7 16. b4 Ne6 17. Nb3 Bd7 18. Rfc1 Rab8 19. f4 Rfe8 20. Kf2 {½-½ (37) Bagirov,R (2471)-Ehlvest,J (2589) Moscow 2002}) 14. b4 {[%emt 0:05:01]} Ne4 {[%emt 0:08:42] The position is equal.} 15. Qxe7 {[%emt 0:01:57]} Rxe7 {[%emt 0:00:05]} 16. Rfc1 {[%emt 0:02:01]} Nd6 {[%emt 0:00:21]} 17. a4 {[%emt 0:03:05]} a6 {[%emt 0:03:52]} 18. Nd2 {[%emt 0:06:29]} Bf5 {[%emt 0:00:45]} 19. Bf1 {[%emt 0:07:19]} g5 {[%emt 0:00:57]} 20. Nb1 {[%emt 0:03:53]} Ree8 {[%emt 0:13:47]} 21. Nd2 {[%emt 0:08:50]} Kg7 {[%emt 0:01:01]} 22. Ra3 {[%emt 0:00:47]} f6 {[%emt 0:02:45]} 23. h3 {[%emt 0:02:39]} h5 {[%emt 0:01:28]} 24. Rb3 {[%emt 0:02:54]} Rec8 {[%emt 0:00:33]} 25. Rbc3 {[%emt 0:02:51]} (25. Rc5 $11) 25... h4 {[%emt 0:01:21]} (25... a5 $15 26. Rb3 Kg6) 26. f3 {[%emt 0:00:49]} (26. Nb3 $11 {keeps the balance.}) 26... a5 $1 $17 {[%emt 0:04:47]} 27. Rb3 {[%emt 0:03:06]} Ra7 {[%emt 0:02:04]} (27... b5 $1 $17 {[%cal Rb5a4]} 28. axb5 a4) 28. Be2 {[%emt 0:01:32]} (28. bxa5 $11 Rxa5 29. Rb4 (29. e4 dxe4 30. fxe4 Nxe4 $11)) 28... axb4 $15 {[%emt 0:00:26]} 29. Rxb4 {[%emt 0:00:10]} Rca8 {[%emt 0:00:03]} 30. Bd1 {[%emt 0:00:54][%cal Be2d1,Bd1b3,Bb3c2][%mdl 32]} Bg6 {[%emt 0:02:42]} 31. Bb3 {[%emt 0:02:01]} f5 {[%emt 0:00:52]} 32. Re1 {[%emt 0:00:41]} Re8 $1 {[%emt 0:00:23]} 33. Bc2 {[%emt 0:01:50]} f4 {[%emt 0:00:40]} ({Black should try} 33... b5 $17) 34. e4 {[%emt 0:00:24]} Re7 {[%emt 0:00:30]} (34... b5 $1 $15) 35. Bb1 {[%emt 0:00:44]} Nf5 {[%emt 0:00:49]} 36. e5 {[%emt 0:01:36]} (36. Rc1 $11 Ng3 37. Kf2) 36... Ne3 $17 {[%emt 0:00:20] ...Bxb1 is the strong threat.} 37. Bxg6 {[%emt 0:00:21]} Kxg6 {[%emt 0:00:04]} 38. Rc1 {[%emt 0:00:25] Prevents Nc2.} Kf7 {[%emt 0:01:18] &Nero is more active.} 39. Nb3 {[%emt 0:02:29]} Nc4 {[%emt 0:00:20]} (39... b5 $1 $17 {[%cal Rb5a4]} 40. a5 (40. axb5 cxb5 41. Kh2 Ra2 $17) 40... Ra6) 40. Rc2 {[%emt 0:00:00]} (40. Nc5 $1 $11) 40... Rc7 {[%emt 0:00:00]} 41. Nd2 {[%emt 0:06:20]} (41. Ra2 $17) 41... Ne3 $1 $19 {[%emt 0:09:41]} 42. Rc5 {[%emt 0:03:40]} (42. Ra2 $17) 42... b6 {[%emt 0:07:05]} 43. Rxb6 {[%emt 0:02:43] And now a5 would win.} Rxa4 {[%emt 0:00:04] Strongly threatening ...Ra2.} 44. Nb3 $2 {[%emt 0:01:57]} (44. Kf2 Ra2 45. Ke1) 44... Ra3 $2 {[%emt 0:01:56]} (44... Ra2 $19 45. Kh1 Rxg2 46. Rcxc6 Rxc6 47. Rxc6 Rg3) 45. Ra5 $11 {[%emt 0:01:01]} Rxa5 {[%emt 0:04:26]} 46. Nxa5 {[%emt 0:00:07][%mdl 4096] Endgame KRN-KRN} c5 {[%emt 0:00:01]} 47. dxc5 {[%emt 0:02:39]} Rxc5 {[%emt 0:00:12]} 48. Nb3 {[%emt 0:01:25]} (48. Rf6+ $11 Ke8 49. Nc6) 48... Rc4 $17 {[%emt 0:00:33]} 49. Rd6 {[%emt 0:01:00] [#]} Ke7 $1 {[%emt 0:00:56]} 50. Na5 {[%emt 0:01:48]} (50. Rg6 $17) 50... Rc1+ $19 {[%emt 0:01:41]} 51. Kf2 {[%emt 0:00:14]} Rc2+ {[%emt 0:00:08]} 52. Kg1 {[%emt 0:00:13]} (52. Ke1 $142) 52... Rc1+ {[%emt 0:00:05]} (52... Rxg2+ 53. Kh1 $11) 53. Kf2 $1 {[%emt 0:00:05]} Rc2+ {[%emt 0:00:02]} 54. Kg1 $1 {[%emt 0:00:06]} Nf5 {[%emt 0:07:07]} ({Not} 54... Rxg2+ 55. Kh1 $11) 55. Rxd5 $2 {[%emt 0:07:39]} (55. Nc6+ $19 Ke8 56. Rd8+ Kf7 57. Rd7+ Ke6 58. Rd6+ Nxd6 59. Nd4+ Kxe5 60. Nxc2) 55... Rc1+ {[%emt 0:00:51]} ({Weaker is} 55... Ne3 56. Rd6 $11) 56. Kf2 {[%emt 0:00:05] [#]} Ng3 $1 {[%emt 0:00:05] Weighted Error Value: White=0.45/Black=0.32} 0-1